fUST/lending_fUST_20250221
["ID","MTS","AMOUNT","RATE_DAILY","PERIOD"]
[353905571,1740125432301,-500.0,0.00013698,2]
[353905572,1740125432311,-500.0,0.00013698,2]
[353905573,1740125432320,-590.96,0.00013698,2]
[353905574,1740125432329,-500.0,0.00013698,2]
[353905575,1740125432338,-540.44,0.00013698,2]
[353905576,1740125432347,-500.0,0.00013698,2]
[353905577,1740125432356,-219.05290424,0.00013698,2]
[353905578,1740125432367,-500.0,0.00013698,2]
[353905579,1740125432377,-500.0,0.00013698,2]
[353905580,1740125432386,-500.0,0.00013698,2]
[353905581,1740125432395,-500.0,0.00013698,2]
[353905582,1740125432405,-500.0,0.00013698,2]
[353905583,1740125432414,-500.0,0.00013698,2]
[353905584,1740125432423,-500.0,0.00013698,2]
[353905585,1740125432433,-500.0,0.00013698,2]
[353905586,1740125432443,-500.0,0.00013698,2]
[353905587,1740125432455,-543.42,0.00013698,2]
[353905588,1740125432464,-500.0,0.00013698,2]
[353905589,1740125432474,-552.66575695,0.00013698,2]
[353905590,1740125432483,-500.0,0.00013698,2]
[353905591,1740125432493,-26.45923619,0.00013698,2]
[353905592,1740125432506,-473.54076381,0.00013698,2]
[353905593,1740125432515,-500.0,0.00013698,2]
[353905594,1740125432527,-32.13893059,0.00013698,2]
[353905595,1740125432539,-314.54692683,0.00013698,2]
[353905599,1740125437702,-153.31414258,0.00013698,2]
[353905600,1740125437711,-950.43,0.00013698,2]
[353905601,1740125437721,-1841.06,0.00013698,2]
[353905602,1740125437730,-500.0,0.00013698,2]
[353905603,1740125437740,-2539.47951982,0.00013698,2]
[353905604,1740125437753,-1982.66048018,0.00013698,2]
[353905605,1740125437762,-1022.03,0.00013698,2]
[353905606,1740125437772,-9150.2,0.00013698,2]
[353905607,1740125437781,-834.46,0.00013698,2]
[353905608,1740125437790,-500.0,0.00013698,2]
[353905609,1740125437799,-2062.28,0.00013698,2]
[353905610,1740125437809,-1133.59,0.00013698,2]
[353905611,1740125437818,-500.0,0.00013698,2]
[353905612,1740125437828,-1131.97,0.00013698,2]
[353905613,1740125437837,-127.313533,0.00013698,2]
[353905614,1740125437849,-372.686467,0.00013698,2]
[353905615,1740125437858,-500.0,0.00013698,2]
[353905616,1740125437867,-1302.67341112,0.00013698,2]
[353905618,1740125440250,-30.61658888,0.00013698,2]
[353905619,1740125440260,-500.0,0.00013698,2]
[353905620,1740125440269,-500.0,0.00013698,2]
[353905621,1740125440279,-500.0,0.00013698,2]
[353905622,1740125440288,-919.72,0.00013698,2]
[353905623,1740125440297,-500.0,0.00013698,2]
[353905624,1740125440307,-500.0,0.00013698,2]
[353905625,1740125440316,-1906.96,0.00013698,2]
[353905626,1740125440325,-500.0,0.00013698,2]
[353905627,1740125440334,-2462.17,0.00013698,2]
[353905628,1740125440343,-3332.39,0.00013698,2]
[353905629,1740125440352,-500.0,0.00013698,2]
[353905630,1740125440361,-550.61,0.00013698,2]
[353905631,1740125440370,-718.46,0.00013698,2]
[353905632,1740125440379,-500.0,0.00013698,2]
[353905633,1740125440387,-946.49,0.00013698,2]
[353905634,1740125440396,-1843.65,0.00013698,2]
[353905635,1740125440405,-500.0,0.00013698,2]
[353905636,1740125440415,-18313.93,0.00013698,2]
[353905637,1740125440424,-500.0,0.00013698,2]
[353905638,1740125440433,-601.48,0.00013698,2]
[353905639,1740125440442,-500.0,0.00013698,2]
[353905640,1740125440454,-7334.37,0.00013698,2]
[353905641,1740125440463,-532.54,0.00013698,2]
[353905642,1740125440472,-912.7,0.00013698,2]
[353905643,1740125440481,-1113.9,0.00013698,2]
[353905644,1740125440491,-500.0,0.00013698,2]
[353905645,1740125440500,-787.82,0.00013698,2]
[353905646,1740125440509,-1005.09,0.00013698,2]
[353905647,1740125440518,-627.24,0.00013698,2]
[353905648,1740125440527,-506.52428404,0.00013698,2]
[353905649,1740125440537,-559.42,0.00013698,2]
[353905650,1740125440546,-504.45646631,0.00013698,2]
[353905651,1740125440555,-1252.26,0.00013698,2]
[353905652,1740125440564,-257.04340586,0.00013698,2]
[353905653,1740125440664,-561.83,0.00013698,2]
[353905654,1740125440700,-1713.02,0.00013698,2]
[353905655,1740125440710,-500.0,0.00013698,2]
[353905656,1740125440719,-3945.07,0.00013698,2]
[353905657,1740125440728,-500.0,0.00013698,2]
[353905658,1740125440739,-506.24605091,0.00013698,2]
[353905659,1740125440747,-1056.97,0.00013698,2]
[353905660,1740125440757,-305.12475772,0.00013698,2]
[353905661,1740125440766,-500.0,0.00013698,2]
[353905662,1740125440775,-500.0,0.00013698,2]
[353905663,1740125440785,-500.0,0.00013698,2]
[353905664,1740125440795,-345.318742,0.00013699,2]
[353905665,1740125440804,-1159.097911,0.00013699,2]
[353905666,1740125440813,-13276.64253133,0.00013715,2]
[353905667,1740125440822,-500.0,0.0001378,2]
[353905668,1740125440831,-500.0,0.0001378,2]
[353905669,1740125440841,-500.0,0.0001378,2]
[353905670,1740125440850,-500.0,0.0001378,2]
[353905671,1740125440859,-500.0,0.0001378,2]
[353905672,1740125440869,-601.54,0.0001378,2]
[353905673,1740125440878,-510.40146625,0.0001378,2]
[353905674,1740125440887,-863.88,0.0001378,2]
[353905675,1740125440896,-500.0,0.0001378,2]
[353905676,1740125440906,-500.0,0.0001378,2]
[353905677,1740125440916,-500.0,0.0001378,2]
[353905678,1740125440925,-500.0,0.0001378,2]
[353905679,1740125440934,-500.0,0.0001378,2]
[353905680,1740125440942,-500.0,0.0001378,2]
[353905681,1740125440952,-500.0,0.0001378,2]
[353905682,1740125440961,-500.0,0.0001378,2]
[353905683,1740125440970,-575.04,0.0001378,2]
[353905684,1740125440979,-500.0,0.0001378,2]
[353905685,1740125440988,-500.0,0.0001378,2]
[353905686,1740125440998,-500.0,0.0001378,2]
[353905687,1740125441007,-500.0,0.0001378,2]
[353905688,1740125441017,-500.0,0.0001378,2]
[353905689,1740125441027,-590.96,0.0001378,2]
[353905690,1740125441036,-500.0,0.0001378,2]
[353905691,1740125441045,-540.44,0.0001378,2]
[353905692,1740125441054,-500.0,0.0001378,2]
[353905693,1740125441064,-500.0,0.0001378,2]
[353905694,1740125441073,-500.0,0.0001378,2]
[353905695,1740125441083,-500.0,0.0001378,2]
[353905696,1740125441092,-500.0,0.0001378,2]
[353905697,1740125441101,-500.0,0.0001378,2]
[353905698,1740125441110,-500.0,0.0001378,2]
[353905699,1740125441119,-500.0,0.0001378,2]
[353905700,1740125441128,-500.0,0.0001378,2]
[353905701,1740125441138,-248.27862739,0.0001378,2]
[353905702,1740125441148,-500.0,0.0001378,2]
[353905703,1740125441157,-500.0,0.0001378,2]
[353905704,1740125441167,-950.43,0.0001378,2]
[353905705,1740125441176,-1841.06,0.0001378,2]
[353905706,1740125441185,-500.0,0.0001378,2]
[353905707,1740125441194,-4522.14,0.0001378,2]
[353905708,1740125441203,-1022.03,0.0001378,2]
[353905709,1740125441212,-9150.2,0.0001378,2]
[353905710,1740125441222,-834.46,0.0001378,2]
[353905711,1740125441231,-328.92,0.0001378,2]
[353905712,1740125441240,-2062.28,0.0001378,2]
[353905713,1740125441249,-1133.59,0.0001378,2]
[353905714,1740125441259,-500.0,0.0001378,2]
[353905715,1740125441268,-1131.97,0.0001378,2]
[353905716,1740125441277,-500.0,0.0001378,2]
[353905717,1740125441286,-500.0,0.0001378,2]
[353905718,1740125441295,-1333.29,0.0001378,2]
[353905719,1740125441304,-500.0,0.0001378,2]
[353905720,1740125441313,-500.0,0.0001378,2]
[353905721,1740125441323,-500.0,0.0001378,2]
[353905722,1740125441332,-919.72,0.0001378,2]
[353905723,1740125441341,-500.0,0.0001378,2]
[353905724,1740125441350,-500.0,0.0001378,2]
[353905725,1740125441359,-1906.96,0.0001378,2]
[353905726,1740125441368,-593.001473,0.0001378,2]
[353905727,1740125441378,-2462.17,0.0001378,2]
[353905728,1740125441387,-3332.39,0.0001378,2]
[353905729,1740125441396,-500.0,0.0001378,2]
[353905730,1740125441405,-550.61,0.0001378,2]
[353905731,1740125441416,-718.46,0.0001378,2]
[353905732,1740125441426,-500.0,0.0001378,2]
[353905733,1740125441435,-946.49,0.0001378,2]
[353905734,1740125441444,-1843.65,0.0001378,2]
[353905735,1740125441458,-18313.93,0.0001378,2]
[353905736,1740125441467,-500.0,0.0001378,2]
[353905737,1740125441477,-601.48,0.0001378,2]
[353905738,1740125441487,-500.0,0.0001378,2]
[353905739,1740125441497,-7334.37,0.0001378,2]
[353905740,1740125441507,-532.54,0.0001378,2]
[353905741,1740125441516,-912.7,0.0001378,2]
[353905742,1740125441526,-1113.9,0.0001378,2]
[353905743,1740125441536,-500.0,0.0001378,2]
[353905744,1740125441545,-787.82,0.0001378,2]
[353905745,1740125441554,-1005.09,0.0001378,2]
[353905746,1740125441564,-627.24,0.0001378,2]
[353905747,1740125441573,-559.42,0.0001378,2]
[353905748,1740125441582,-1252.26,0.0001378,2]
[353905749,1740125441591,-561.83,0.0001378,2]
[353905750,1740125441600,-1713.02,0.0001378,2]
[353905751,1740125441609,-3945.07,0.0001378,2]
[353905752,1740125441620,-500.0,0.0001378,2]
[353905753,1740125441631,-1056.97,0.0001378,2]
[353905754,1740125441640,-500.0,0.0001378,2]
[353905755,1740125441649,-500.0,0.0001378,2]
[353905756,1740125441658,-3000.0,0.00013844,2]
[353905757,1740125441667,-500.0,0.00013863,2]
[353905758,1740125441676,-500.0,0.00013863,2]
[353905759,1740125441685,-495.4709574,0.00013863,2]
[353905760,1740125441694,-500.0,0.00013863,2]
[353905761,1740125441704,-601.54,0.00013863,2]
[353905762,1740125441714,-863.88,0.00013863,2]
[353905763,1740125441724,-500.0,0.00013863,2]
[353905764,1740125441733,-500.0,0.00013863,2]
[353905765,1740125441743,-500.0,0.00013863,2]
[353905766,1740125441752,-349.0215852,0.00013863,2]
[353905767,1740125441762,-500.0,0.00013863,2]
[353905768,1740125441771,-372.77038558,0.00013863,2]
[353905769,1740125441780,-500.0,0.00013863,2]
[353905770,1740125441789,-500.0,0.00013863,2]
[353905771,1740125441798,-575.04,0.00013863,2]
[353905772,1740125441807,-500.0,0.00013863,2]
[353905773,1740125441816,-500.0,0.00013863,2]
[353905774,1740125441825,-500.0,0.00013863,2]
[353905775,1740125441835,-500.0,0.00013863,2]
[353905776,1740125441844,-500.0,0.00013863,2]
[353905777,1740125441853,-590.96,0.00013863,2]
[353905778,1740125441862,-500.0,0.00013863,2]
[353905779,1740125441871,-540.44,0.00013863,2]
[353905780,1740125441880,-500.0,0.00013863,2]
[353905781,1740125441890,-500.0,0.00013863,2]
[353905782,1740125441899,-500.0,0.00013863,2]
[353905783,1740125441909,-500.0,0.00013863,2]
[353905784,1740125441918,-500.0,0.00013863,2]
[353905785,1740125441927,-500.0,0.00013863,2]
[353905786,1740125441937,-500.0,0.00013863,2]
[353905787,1740125441946,-500.0,0.00013863,2]
[353905788,1740125441955,-500.0,0.00013863,2]
[353905789,1740125441965,-500.0,0.00013863,2]
[353905790,1740125441974,-500.0,0.00013863,2]
[353905791,1740125441984,-950.43,0.00013863,2]
[353905792,1740125441994,-1841.06,0.00013863,2]
[353905793,1740125442003,-500.0,0.00013863,2]
[353905794,1740125442013,-4522.14,0.00013863,2]
[353905795,1740125442022,-1022.03,0.00013863,2]
[353905796,1740125442031,-9150.2,0.00013863,2]
[353905797,1740125442040,-834.46,0.00013863,2]
[353905798,1740125442050,-2062.28,0.00013863,2]
[353905799,1740125442059,-1133.59,0.00013863,2]
[353905800,1740125442068,-500.0,0.00013863,2]
[353905801,1740125442078,-1131.97,0.00013863,2]
[353905802,1740125442087,-500.0,0.00013863,2]
[353905803,1740125442097,-500.0,0.00013863,2]
[353905804,1740125442106,-1333.29,0.00013863,2]
[353905805,1740125442115,-500.0,0.00013863,2]
[353905806,1740125442124,-500.0,0.00013863,2]
[353905807,1740125442134,-500.0,0.00013863,2]
[353905808,1740125442144,-919.72,0.00013863,2]
[353905809,1740125442153,-500.0,0.00013863,2]
[353905810,1740125442164,-500.0,0.00013863,2]
[353905811,1740125442174,-1906.96,0.00013863,2]
[353905812,1740125442184,-2462.17,0.00013863,2]
[353905813,1740125442193,-3332.39,0.00013863,2]
[353905814,1740125442203,-500.0,0.00013863,2]
[353905815,1740125442212,-550.61,0.00013863,2]
[353905816,1740125442221,-718.46,0.00013863,2]
[353905817,1740125442230,-500.0,0.00013863,2]
[353905818,1740125442239,-946.49,0.00013863,2]
[353905819,1740125442248,-1843.65,0.00013863,2]
[353905820,1740125442257,-18313.93,0.00013863,2]
[353905821,1740125442266,-500.0,0.00013863,2]
[353905822,1740125442276,-601.48,0.00013863,2]
[353905823,1740125442285,-7334.37,0.00013863,2]
[353905824,1740125442294,-532.54,0.00013863,2]
[353905825,1740125442303,-912.7,0.00013863,2]
[353905826,1740125442313,-1113.9,0.00013863,2]
[353905827,1740125442322,-500.0,0.00013863,2]
[353905828,1740125442331,-787.82,0.00013863,2]
[353905829,1740125442341,-1005.09,0.00013863,2]
[353905830,1740125442350,-627.24,0.00013863,2]
[353905831,1740125442359,-559.42,0.00013863,2]
[353905833,1740125442367,-1252.26,0.00013863,2]
[353905835,1740125442376,-561.83,0.00013863,2]
[353905837,1740125442385,-1713.02,0.00013863,2]
[353905838,1740125442394,-3945.07,0.00013863,2]
[353905839,1740125442404,-500.0,0.00013863,2]
[353905840,1740125442413,-1056.97,0.00013863,2]
[353905841,1740125442422,-500.0,0.00013863,2]
[353905842,1740125442431,-500.0,0.00013863,2]
[353905843,1740125442440,-710.5069174,0.000139,2]
[353905844,1740125442454,-308.5185246,0.000139,2]
[353905845,1740125442463,-309.5567162,0.000139,2]
[353905846,1740125442472,-678.8020721,0.00013915,2]
[353905847,1740125442482,-8630.71077294,0.00013927,2]
[353905848,1740125442491,-511.36147348,0.00013945,2]
[353905849,1740125442501,-500.0,0.00013945,2]
[353905850,1740125442510,-500.0,0.00013945,2]
[353905851,1740125442519,-601.54,0.00013945,2]
[353905852,1740125442530,-863.88,0.00013945,2]
[353905853,1740125442540,-500.0,0.00013945,2]
[353905854,1740125442549,-500.0,0.00013945,2]
[353905855,1740125442558,-500.0,0.00013945,2]
[353905856,1740125442567,-500.0,0.00013945,2]
[353905857,1740125442576,-500.0,0.00013945,2]
[353905858,1740125442586,-500.0,0.00013945,2]
[353905859,1740125442595,-575.04,0.00013945,2]
[353905860,1740125442603,-500.0,0.00013945,2]
[353905861,1740125442613,-500.0,0.00013945,2]
[353905862,1740125442622,-500.0,0.00013945,2]
[353905863,1740125442632,-500.0,0.00013945,2]
[353905864,1740125442641,-500.0,0.00013945,2]
[353905865,1740125442650,-590.96,0.00013945,2]
[353905866,1740125442659,-500.0,0.00013945,2]
[353905867,1740125442668,-540.44,0.00013945,2]
[353905868,1740125442678,-500.0,0.00013945,2]
[353905869,1740125442687,-500.0,0.00013945,2]
[353905870,1740125442697,-500.0,0.00013945,2]
[353905872,1740125442706,-500.0,0.00013945,2]
[353905874,1740125442715,-439.94796735,0.00013945,2]
[353905876,1740125442725,-268.90884737,0.00013945,2]
[353905877,1740125442734,-500.0,0.00013945,2]
[353905878,1740125442744,-500.0,0.00013945,2]
[353905879,1740125442753,-500.0,0.00013945,2]
[353905880,1740125442763,-500.0,0.00013945,2]
[353905881,1740125442773,-500.0,0.00013945,2]
[353905882,1740125442782,-950.43,0.00013945,2]
[353905883,1740125442792,-1841.06,0.00013945,2]
[353905884,1740125442802,-500.0,0.00013945,2]
[353905885,1740125442811,-4522.14,0.00013945,2]
[353905886,1740125442820,-1022.03,0.00013945,2]
[353905887,1740125442830,-9150.2,0.00013945,2]
[353905888,1740125442839,-834.46,0.00013945,2]
[353905889,1740125442848,-2062.28,0.00013945,2]
[353905890,1740125442858,-500.0,0.00013945,2]
[353905891,1740125442867,-1133.59,0.00013945,2]
[353905892,1740125442877,-1131.97,0.00013945,2]
[353905893,1740125442886,-500.0,0.00013945,2]
[353905894,1740125442895,-500.0,0.00013945,2]
[353905895,1740125442904,-1333.29,0.00013945,2]
[353905896,1740125442915,-504.72208563,0.00013945,2]
[353905897,1740125442924,-500.0,0.00013945,2]
[353905898,1740125442933,-500.0,0.00013945,2]
[353905899,1740125442943,-919.72,0.00013945,2]
[353905900,1740125442953,-500.0,0.00013945,2]
[353905901,1740125442962,-500.0,0.00013945,2]
[353905902,1740125442972,-1906.96,0.00013945,2]
[353905903,1740125442982,-2462.17,0.00013945,2]
[353905904,1740125442992,-3332.39,0.00013945,2]
[353905905,1740125443001,-504.89213378,0.00013945,2]
[353905906,1740125443010,-550.61,0.00013945,2]
[353905907,1740125443020,-718.46,0.00013945,2]
[353905908,1740125443029,-500.0,0.00013945,2]
[353905909,1740125443038,-946.49,0.00013945,2]
[353905910,1740125443048,-1843.65,0.00013945,2]
[353905912,1740125443058,-18313.93,0.00013945,2]
[353905914,1740125443068,-500.0,0.00013945,2]
[353905915,1740125443078,-601.48,0.00013945,2]
[353905916,1740125443088,-7334.37,0.00013945,2]
[353905917,1740125443097,-532.54,0.00013945,2]
[353905918,1740125443107,-912.7,0.00013945,2]
[353905919,1740125443116,-1113.9,0.00013945,2]
[353905920,1740125443125,-500.0,0.00013945,2]
[353905921,1740125443135,-787.82,0.00013945,2]
[353905922,1740125443144,-1005.09,0.00013945,2]
[353905923,1740125443154,-627.24,0.00013945,2]
[353905924,1740125443164,-559.42,0.00013945,2]
[353905925,1740125443174,-1252.26,0.00013945,2]
[353905926,1740125443183,-561.83,0.00013945,2]
[353905927,1740125443192,-1713.02,0.00013945,2]
[353905928,1740125443202,-3945.07,0.00013945,2]
[353905929,1740125443211,-500.0,0.00013945,2]
[353905930,1740125443220,-1056.97,0.00013945,2]
[353905931,1740125443229,-500.0,0.00013945,2]
[353905932,1740125443344,-500.0,0.00013945,2]
[353905933,1740125443353,-500.0,0.00013972,2]
[353905934,1740125443364,-160.0,0.00013999,3]
[353905935,1740125443373,-200.0,0.00014,3]
[353905936,1740125443383,-713.2550942,0.00014,2]
[353905937,1740125443392,-1000.0,0.00014,3]
[353905938,1740125443402,-198.0,0.00014,3]
[353905939,1740125443413,-198.0,0.00014,3]
[353905940,1740125443423,-200.0,0.00014,2]
[353905941,1740125443432,-200.0,0.00014,2]
[353905942,1740125443442,-200.0,0.00014,3]
[353905943,1740125443454,-500.0,0.00014026,2]
[353905944,1740125443464,-500.0,0.00014026,2]
[353905945,1740125443473,-350.75746811,0.00014026,2]
[353905946,1740125443482,-500.0,0.00014026,2]
[353905947,1740125443492,-282.32860556,0.00014026,2]
[353905948,1740125443502,-500.0,0.00014026,2]
[353905949,1740125443511,-500.0,0.00014026,2]
[353905950,1740125443521,-500.0,0.00014026,2]
[353905951,1740125443533,-500.0,0.00014026,2]
[353905952,1740125443543,-500.0,0.00014026,2]
[353905953,1740125443553,-500.0,0.00014026,2]
[353905954,1740125443564,-500.0,0.00014026,2]
[353905955,1740125443573,-500.0,0.00014026,2]
[353905956,1740125443583,-353.52973595,0.00014026,2]
[353905957,1740125443592,-213.48803046,0.00014026,2]
[353905958,1740125443602,-460.202981,0.00014026,2]
[353905959,1740125443611,-500.0,0.00014026,2]
[353905960,1740125443621,-500.0,0.00014026,2]
[353905961,1740125443630,-500.0,0.00014026,2]
[353905962,1740125443639,-500.0,0.00014026,2]
[353905963,1740125443648,-636.70956521,0.00014026,2]
[353905964,1740125443657,-500.0,0.00014026,2]
[353905965,1740125443667,-500.0,0.00014026,2]
[353905966,1740125443676,-500.0,0.00014026,2]
[353905967,1740125443686,-500.0,0.00014026,2]
[353905968,1740125443696,-500.0,0.00014026,2]
[353905969,1740125443705,-500.0,0.00014026,2]
[353905970,1740125443715,-208.45888495,0.00014026,2]
[353905971,1740125443724,-500.0,0.00014026,2]
[353905972,1740125443734,-500.0,0.00014026,2]
[353905973,1740125443743,-500.0,0.00014026,2]
[353905974,1740125443752,-500.0,0.00014026,2]
[353905975,1740125443762,-500.0,0.00014026,2]
[353905976,1740125443771,-500.0,0.00014026,2]
[353905977,1740125443780,-367.77394644,0.00014026,2]
[353905978,1740125443790,-500.0,0.00014026,2]
[353905979,1740125443799,-500.0,0.00014026,2]
[353905980,1740125443808,-500.0,0.00014026,2]
[353905981,1740125443817,-500.0,0.00014026,2]
[353905982,1740125443827,-500.0,0.00014026,2]
[353905983,1740125443836,-500.0,0.00014027,2]
[353905984,1740125443845,-500.0,0.00014027,2]
[353905985,1740125443855,-601.54,0.00014027,2]
[353905986,1740125443864,-863.88,0.00014027,2]
[353905987,1740125443873,-500.0,0.00014027,2]
[353905988,1740125443883,-500.0,0.00014027,2]
[353905989,1740125443892,-500.0,0.00014027,2]
[353905990,1740125443901,-500.0,0.00014027,2]
[353905991,1740125443910,-500.0,0.00014027,2]
[353905992,1740125443920,-500.0,0.00014027,2]
[353905993,1740125443929,-575.04,0.00014027,2]
[353905994,1740125443939,-500.0,0.00014027,2]
[353905995,1740125443948,-500.0,0.00014027,2]
[353905996,1740125443957,-500.0,0.00014027,2]
[353905997,1740125443967,-500.0,0.00014027,2]
[353905998,1740125443977,-500.0,0.00014027,2]
[353905999,1740125443987,-590.96,0.00014027,2]
[353906000,1740125443996,-500.0,0.00014027,2]
[353906001,1740125444006,-540.44,0.00014027,2]
[353906002,1740125444015,-500.0,0.00014027,2]
[353906003,1740125444025,-500.0,0.00014027,2]
[353906004,1740125444034,-500.0,0.00014027,2]
[353906005,1740125444044,-500.0,0.00014027,2]
[353906006,1740125444054,-500.0,0.00014027,2]
[353906007,1740125444063,-500.0,0.00014027,2]
[353906008,1740125444072,-500.0,0.00014027,2]
[353906009,1740125444082,-500.0,0.00014027,2]
[353906010,1740125444091,-500.0,0.00014027,2]
[353906011,1740125444100,-950.43,0.00014027,2]
[353906012,1740125444110,-1841.06,0.00014027,2]
[353906013,1740125444119,-500.0,0.00014027,2]
[353906014,1740125444128,-4522.14,0.00014027,2]
[353906015,1740125444138,-1022.03,0.00014027,2]
[353906016,1740125444147,-9150.2,0.00014027,2]
[353906017,1740125444158,-834.46,0.00014027,2]
[353906018,1740125444168,-2062.28,0.00014027,2]
[353906019,1740125444177,-1133.59,0.00014027,2]
[353906020,1740125444187,-500.0,0.00014027,2]
[353906021,1740125444196,-1131.97,0.00014027,2]
[353906022,1740125444205,-500.0,0.00014027,2]
[353906023,1740125444215,-507.07882964,0.00014027,2]
[353906024,1740125444224,-1333.29,0.00014027,2]
[353906025,1740125444233,-500.0,0.00014027,2]
[353906026,1740125444242,-500.0,0.00014027,2]
[353906027,1740125444252,-919.72,0.00014027,2]
[353906028,1740125444261,-500.0,0.00014027,2]
[353906029,1740125444271,-500.0,0.00014027,2]
[353906030,1740125444280,-1906.96,0.00014027,2]
[353906031,1740125444289,-2462.17,0.00014027,2]
[353906032,1740125444298,-3332.39,0.00014027,2]
[353906033,1740125444308,-550.61,0.00014027,2]
[353906034,1740125444317,-718.46,0.00014027,2]
[353906035,1740125444326,-500.0,0.00014027,2]
[353906036,1740125444335,-946.49,0.00014027,2]
[353906037,1740125444345,-1843.65,0.00014027,2]
[353906038,1740125444354,-18313.93,0.00014027,2]
[353906039,1740125444363,-500.0,0.00014027,2]
[353906040,1740125444372,-601.48,0.00014027,2]
[353906041,1740125444381,-7334.37,0.00014027,2]
[353906042,1740125444390,-532.54,0.00014027,2]
[353906043,1740125444399,-912.7,0.00014027,2]
[353906044,1740125444408,-1113.9,0.00014027,2]
[353906045,1740125444418,-500.0,0.00014027,2]
[353906046,1740125444427,-787.82,0.00014027,2]
[353906047,1740125444436,-1005.09,0.00014027,2]
[353906048,1740125444445,-627.24,0.00014027,2]
[353906049,1740125444459,-559.42,0.00014027,2]
[353906050,1740125444468,-1252.26,0.00014027,2]
[353906051,1740125444477,-561.83,0.00014027,2]
[353906052,1740125444486,-1713.02,0.00014027,2]
[353906053,1740125444497,-3945.07,0.00014027,2]
[353906054,1740125444506,-500.0,0.00014027,2]
[353906055,1740125444515,-1056.97,0.00014027,2]
[353906056,1740125444525,-512.34563179,0.00014027,2]
[353906057,1740125444534,-500.0,0.00014027,2]
[353906058,1740125444544,-151.0,0.000141,2]
[353906059,1740125444558,-151.0,0.000141,2]
[353906060,1740125444568,-151.0,0.000141,2]
[353906061,1740125444577,-500.0,0.00014109,2]
[353906062,1740125444586,-500.0,0.00014109,2]
[353906063,1740125444595,-601.54,0.00014109,2]
[353906064,1740125444604,-863.88,0.00014109,2]
[353906065,1740125444613,-500.0,0.00014109,2]
[353906066,1740125444622,-514.31133253,0.00014109,2]
[353906067,1740125444631,-500.0,0.00014109,2]
[353906068,1740125444640,-500.0,0.00014109,2]
[353906069,1740125444649,-500.0,0.00014109,2]
[353906070,1740125444658,-500.0,0.00014109,2]
[353906071,1740125444668,-575.04,0.00014109,2]
[353906072,1740125444677,-500.0,0.00014109,2]
[353906073,1740125444686,-500.0,0.00014109,2]
[353906074,1740125444695,-500.0,0.00014109,2]
[353906075,1740125444704,-500.0,0.00014109,2]
[353906076,1740125444713,-500.0,0.00014109,2]
[353906077,1740125444722,-590.96,0.00014109,2]
[353906078,1740125444731,-500.0,0.00014109,2]
[353906079,1740125444740,-540.44,0.00014109,2]
[353906080,1740125444749,-500.0,0.00014109,2]
[353906081,1740125444759,-500.0,0.00014109,2]
[353906082,1740125444768,-500.0,0.00014109,2]